[Event "*** Titled Tuesday Blitz"]
[Site "Chess.com"]
[Date "2020.04.28"]
[Round "7"]
[White "dpopadic"]
[Black "ENEASZ"]
[Result "1-0"]
[WhiteElo "2362"]
[BlackElo "2548"]
[TimeControl "180+1"]
[EndTime "11:18:20 PDT"]
[Termination "dpopadic won by resignation"]

1. e4 {[%clk 0:03:00.9]} 1... d6 {[%clk 0:02:59.6]} 2. Nc3 {[%clk 0:03:00.7]}
2... c5 {[%clk 0:02:57.7]} 3. f4 {[%clk 0:03:00.5]} 3... Nc6 {[%clk 0:02:55.5]}
4. Nf3 {[%clk 0:03:00.5]} 4... g6 {[%clk 0:02:55.7]} 5. Bc4 {[%clk 0:03:00.5]}
5... Bg7 {[%clk 0:02:55.9]} 6. d3 {[%clk 0:03:00.8]} 6... e6 {[%clk 0:02:56.4]}
7. O-O {[%clk 0:03:00.8]} 7... Nge7 {[%clk 0:02:57]} 8. Qe1 {[%clk 0:03:01]}
8... O-O {[%clk 0:02:55.9]} 9. f5 {[%clk 0:03:01]} 9... Na5 {[%clk 0:02:55.6]}
10. Qh4 {[%clk 0:02:42.4]} 10... Nxc4 {[%clk 0:02:52]} 11. f6 {[%clk 0:02:35.8]}
11... Nf5 {[%clk 0:01:56.5]} 12. exf5 {[%clk 0:02:32]} 12... Bxf6 {[%clk
0:01:56.7]} 13. Qxc4 {[%clk 0:02:30.6]} 13... gxf5 {[%clk 0:01:52.5]} 14. Bh6
{[%clk 0:02:28.2]} 14... Re8 {[%clk 0:01:51.5]} 15. Qf4 {[%clk 0:02:26.9]} 15...
Kh8 {[%clk 0:01:43.5]} 16. Kh1 {[%clk 0:02:15.5]} 16... a6 {[%clk 0:01:39.8]}
17. a4 {[%clk 0:02:14.7]} 17... b6 {[%clk 0:01:39.2]} 18. Ng5 {[%clk 0:02:04.2]}
18... Qe7 {[%clk 0:01:34.2]} 19. Rf3 {[%clk 0:01:52]} 19... Rg8 {[%clk
0:01:31.5]} 20. Nh3 {[%clk 0:01:22.2]} 20... Bb7 {[%clk 0:01:29.8]} 21. Rg3
{[%clk 0:01:22.1]} 21... Rxg3 {[%clk 0:01:29.5]} 22. hxg3 {[%clk 0:01:22.1]}
22... Rg8 {[%clk 0:01:29.6]} 23. Re1 {[%clk 0:01:17.4]} 23... Rg4 {[%clk
0:01:26.1]} 24. Qf2 {[%clk 0:01:10.4]} 24... Bd4 {[%clk 0:01:23.9]} 25. Be3
{[%clk 0:01:09.2]} 25... Be5 {[%clk 0:01:15.4]} 26. Nf4 {[%clk 0:01:05.1]} 26...
Qg5 {[%clk 0:01:15.5]} 27. Nce2 {[%clk 0:00:50.8]} 27... Qg7 {[%clk 0:01:01]}
28. c3 {[%clk 0:00:49]} 28... Bc6 {[%clk 0:00:59.5]} 29. a5 {[%clk 0:00:43.8]}
29... bxa5 {[%clk 0:00:58]} 30. Kg1 {[%clk 0:00:43.7]} 30... a4 {[%clk
0:00:57.8]} 31. d4 {[%clk 0:00:39.7]} 31... cxd4 {[%clk 0:00:55.2]} 32. Bxd4
{[%clk 0:00:38.8]} 32... Bxd4 {[%clk 0:00:42.8]} 33. cxd4 {[%clk 0:00:38.2]}
33... h6 {[%clk 0:00:28.1]} 34. Rc1 {[%clk 0:00:37.5]} 34... Bb5 {[%clk
0:00:28.5]} 35. Rc8+ {[%clk 0:00:32.2]} 35... Kh7 {[%clk 0:00:28.6]} 36. Qe3
{[%clk 0:00:30.6]} 36... Bxe2 {[%clk 0:00:26.8]} 37. Nxe2 {[%clk 0:00:29.4]}
37... Re4 {[%clk 0:00:26.4]} 38. Qf3 {[%clk 0:00:28.7]} 38... Qg5 {[%clk
0:00:25.7]} 39. Rc7 {[%clk 0:00:22.4]} 39... Kg7 {[%clk 0:00:22.7]} 40. Nf4
{[%clk 0:00:21.4]} 40... Re1+ {[%clk 0:00:20.6]} 41. Kh2 {[%clk 0:00:20]} 41...
Re4 {[%clk 0:00:21.5]} 42. d5 {[%clk 0:00:18.7]} 42... e5 {[%clk 0:00:20]} 43.
Ne6+ {[%clk 0:00:18.5]} 1-0

[Event "*** Titled Tuesday Blitz"]
[Site "Chess.com"]
[Date "2020.04.28"]
[Round "7"]
[White "tufferguy"]
[Black "kingofkolkata"]
[Result "1-0"]
[WhiteElo "2374"]
[BlackElo "2233"]
[TimeControl "180+1"]
[EndTime "11:18:20 PDT"]
[Termination "tufferguy won by resignation"]

1. e4 {[%clk 0:03:00.9]} 1... e5 {[%clk 0:02:58.7]} 2. Nf3 {[%clk 0:03:00.2]}
2... Nc6 {[%clk 0:02:57.2]} 3. d4 {[%clk 0:03:00.2]} 3... exd4 {[%clk 0:02:57]}
4. Nxd4 {[%clk 0:03:01.1]} 4... Bc5 {[%clk 0:02:56.8]} 5. Nb3 {[%clk 0:02:56.5]}
5... Bb6 {[%clk 0:02:56.8]} 6. Nc3 {[%clk 0:02:54.6]} 6... Nge7 {[%clk
0:02:57.1]} 7. Bg5 {[%clk 0:02:54.2]} 7... d6 {[%clk 0:02:56.5]} 8. Bd3 {[%clk
0:02:51.7]} 8... O-O {[%clk 0:02:56.1]} 9. O-O {[%clk 0:02:48.9]} 9... f6 {[%clk
0:02:56]} 10. Bh4 {[%clk 0:02:48.1]} 10... Be6 {[%clk 0:02:55.5]} 11. Kh1 {[%clk
0:02:46.9]} 11... d5 {[%clk 0:02:43.4]} 12. exd5 {[%clk 0:02:37.5]} 12... Nxd5
{[%clk 0:02:43.5]} 13. Nxd5 {[%clk 0:02:11.1]} 13... Qxd5 {[%clk 0:02:42.6]} 14.
c4 {[%clk 0:02:10.2]} 14... Qd7 {[%clk 0:02:35.9]} 15. c5 {[%clk 0:02:07.2]}
15... Rad8 {[%clk 0:02:22.3]} 16. cxb6 {[%clk 0:01:36]} 16... Qxd3 {[%clk
0:02:15.6]} 17. Qxd3 {[%clk 0:01:30.7]} 17... Rxd3 {[%clk 0:02:16.5]} 18. Nc5
{[%clk 0:01:28.9]} 18... Rd6 {[%clk 0:02:10.1]} 19. Bg3 {[%clk 0:01:22.1]} 19...
Ne5 {[%clk 0:02:05.2]} 20. f4 {[%clk 0:00:50.7]} 20... Nd3 {[%clk 0:01:35.8]}
21. f5 {[%clk 0:00:47.8]} 21... Nxc5 {[%clk 0:01:33.3]} 22. Bxd6 {[%clk
0:00:46.6]} 22... cxd6 {[%clk 0:01:33.3]} 23. fxe6 {[%clk 0:00:45.8]} 23... axb6
{[%clk 0:01:30.3]} 24. Rad1 {[%clk 0:00:44.6]} 24... Nxe6 {[%clk 0:01:26.5]} 25.
Rxd6 {[%clk 0:00:42.3]} 25... Nc5 {[%clk 0:01:22]} 26. Rxb6 {[%clk 0:00:42]}
26... Rd8 {[%clk 0:01:21.9]} 27. b4 {[%clk 0:00:40.1]} 27... Ne4 {[%clk
0:01:20.7]} 28. Rxb7 {[%clk 0:00:38.7]} 28... Rd2 {[%clk 0:01:20.4]} 29. Re7
{[%clk 0:00:20.1]} 29... f5 {[%clk 0:01:15.9]} 30. b5 {[%clk 0:00:17.5]} 30...
Rxa2 {[%clk 0:01:14.2]} 31. b6 {[%clk 0:00:16.9]} 31... Rb2 {[%clk 0:01:14.5]}
32. b7 {[%clk 0:00:16.7]} 32... Nd6 {[%clk 0:01:09.7]} 33. Rc1 {[%clk
0:00:08.2]} 33... h5 {[%clk 0:00:59.3]} 34. Rc8+ {[%clk 0:00:06.3]} 34... Kh7
{[%clk 0:00:54.5]} 35. b8=Q {[%clk 0:00:06.7]} 35... Rxb8 {[%clk 0:00:49.8]} 36.
Rxb8 {[%clk 0:00:07.6]} 36... Ne4 {[%clk 0:00:49.4]} 37. Rbb7 {[%clk 0:00:07.4]}
37... Kg6 {[%clk 0:00:47.2]} 38. Rxg7+ {[%clk 0:00:06.8]} 38... Kf6 {[%clk
0:00:47.6]} 39. Rgf7+ {[%clk 0:00:07]} 39... Ke5 {[%clk 0:00:48]} 40. Rfe7+
{[%clk 0:00:07.2]} 40... Kf4 {[%clk 0:00:48.3]} 41. Rxe4+ {[%clk 0:00:08.1]}
41... fxe4 {[%clk 0:00:47.6]} 42. Kg1 {[%clk 0:00:09]} 42... Ke3 {[%clk
0:00:47.7]} 43. Kf1 {[%clk 0:00:09.2]} 43... Kd2 {[%clk 0:00:48.3]} 44. Rd7+
{[%clk 0:00:09.1]} 44... Ke3 {[%clk 0:00:48]} 45. Ke1 {[%clk 0:00:09.3]} 45...
h4 {[%clk 0:00:48.9]} 46. h3 {[%clk 0:00:09.1]} 46... Kf4 {[%clk 0:00:48.6]} 47.
Kf2 {[%clk 0:00:09.6]} 47... e3+ {[%clk 0:00:49.5]} 48. Ke2 {[%clk 0:00:10]}
48... Kg3 {[%clk 0:00:50.4]} 49. Rg7+ {[%clk 0:00:10]} 49... Kh2 {[%clk
0:00:50]} 50. Kxe3 {[%clk 0:00:10.4]} 50... Kg1 {[%clk 0:00:50.9]} 51. Kf3
{[%clk 0:00:10.3]} 51... Kh2 {[%clk 0:00:51.8]} 52. Rg4 {[%clk 0:00:10.3]} 52...
Kg1 {[%clk 0:00:52.7]} 53. Rxh4 {[%clk 0:00:10.7]} 53... Kh2 {[%clk 0:00:53.6]}
54. Re4 {[%clk 0:00:10.7]} 1-0

[Event "*** Titled Tuesday Blitz"]
[Site "Chess.com"]
[Date "2020.04.28"]
[Round "7"]
[White "ChessicallyInclined"]
[Black "ljuks68"]
[Result "0-1"]
[WhiteElo "2525"]
[BlackElo "2363"]
[TimeControl "180+1"]
[EndTime "11:18:23 PDT"]
[Termination "ljuks68 won by resignation"]

1. d4 {[%clk 0:03:00.9]} 1... d5 {[%clk 0:02:59.5]} 2. c4 {[%clk 0:02:55.3]}
2... c6 {[%clk 0:02:59]} 3. Nf3 {[%clk 0:02:55.3]} 3... Nf6 {[%clk 0:02:58.4]}
4. e3 {[%clk 0:02:53.3]} 4... e6 {[%clk 0:02:57.7]} 5. Nc3 {[%clk 0:02:52.4]}
5... Nbd7 {[%clk 0:02:57.3]} 6. Bd2 {[%clk 0:02:49.2]} 6... Bd6 {[%clk 0:02:55]}
7. Bd3 {[%clk 0:02:42.1]} 7... dxc4 {[%clk 0:02:54.3]} 8. Bxc4 {[%clk 0:02:43]}
8... b5 {[%clk 0:02:54.5]} 9. Bd3 {[%clk 0:02:41.1]} 9... a6 {[%clk 0:02:53.8]}
10. O-O {[%clk 0:02:38.5]} 10... c5 {[%clk 0:02:52.1]} 11. Ne4 {[%clk
0:02:37.3]} 11... Be7 {[%clk 0:02:49.9]} 12. a4 {[%clk 0:02:32.3]} 12... c4
{[%clk 0:02:47]} 13. Bb1 {[%clk 0:02:31.1]} 13... Bb7 {[%clk 0:02:46.8]} 14.
Nxf6+ {[%clk 0:02:27.7]} 14... Nxf6 {[%clk 0:02:46.3]} 15. Ne5 {[%clk
0:02:18.6]} 15... O-O {[%clk 0:02:36]} 16. f3 {[%clk 0:02:08.3]} 16... Bd6
{[%clk 0:02:34.3]} 17. Bc3 {[%clk 0:01:53.8]} 17... Nd5 {[%clk 0:02:31.6]} 18.
Qe1 {[%clk 0:01:39.5]} 18... f6 {[%clk 0:02:04.3]} 19. Ng4 {[%clk 0:01:30]}
19... b4 {[%clk 0:01:56.7]} 20. Bd2 {[%clk 0:01:19]} 20... f5 {[%clk 0:01:50.7]}
21. Ne5 {[%clk 0:01:12.5]} 21... Rc8 {[%clk 0:01:50.3]} 22. e4 {[%clk
0:01:06.8]} 22... fxe4 {[%clk 0:01:46.7]} 23. Bxe4 {[%clk 0:01:06.5]} 23... c3
{[%clk 0:01:42.6]} 24. bxc3 {[%clk 0:00:56.4]} 24... bxc3 {[%clk 0:01:42.2]} 25.
Bc1 {[%clk 0:00:42.7]} 25... Qb6 {[%clk 0:01:39.8]} 26. Qf2 {[%clk 0:00:24.4]}
26... Rfd8 {[%clk 0:01:16.6]} 27. Bg5 {[%clk 0:00:17.3]} 27... Bxe5 {[%clk
0:01:04.9]} 28. dxe5 {[%clk 0:00:16.5]} 28... Qxf2+ {[%clk 0:01:04]} 29. Kxf2
{[%clk 0:00:17.4]} 29... Rd7 {[%clk 0:01:04.1]} 30. Rac1 {[%clk 0:00:16.3]}
30... Bc6 {[%clk 0:00:59.2]} 31. a5 {[%clk 0:00:13.9]} 31... Bb5 {[%clk
0:00:52.9]} 32. Rfe1 {[%clk 0:00:13.5]} 32... Nb4 {[%clk 0:00:52.3]} 33. Be3
{[%clk 0:00:10.6]} 33... Bd3 {[%clk 0:00:49.4]} 34. Red1 {[%clk 0:00:05.7]}
34... Rcc7 {[%clk 0:00:35.8]} 35. Bb6 {[%clk 0:00:05.7]} 35... c2 {[%clk
0:00:21.2]} 36. Rd2 {[%clk 0:00:05.1]} 36... Bxe4 {[%clk 0:00:21]} 37. Bxc7
{[%clk 0:00:04.7]} 37... Rxd2+ {[%clk 0:00:19.1]} 38. Ke3 {[%clk 0:00:05.3]}
38... Rd1 {[%clk 0:00:18.1]} 0-1

[Event "*** Titled Tuesday Blitz"]
[Site "Chess.com"]
[Date "2020.04.28"]
[Round "7"]
[White "VitaliyBernadskiy"]
[Black "LuckSlayeer"]
[Result "1-0"]
[WhiteElo "2711"]
[BlackElo "2528"]
[TimeControl "180+1"]
[EndTime "11:18:24 PDT"]
[Termination "VitaliyBernadskiy won by resignation"]

1. Nc3 {[%clk 0:03:00.5]} 1... d5 {[%clk 0:02:57]} 2. e4 {[%clk 0:02:59.8]} 2...
dxe4 {[%clk 0:02:49.2]} 3. Nxe4 {[%clk 0:03:00.7]} 3... Bf5 {[%clk 0:02:48.3]}
4. Qf3 {[%clk 0:02:56.2]} 4... Qd5 {[%clk 0:02:37.2]} 5. d3 {[%clk 0:02:36.3]}
5... Nc6 {[%clk 0:02:34.8]} 6. Ng3 {[%clk 0:02:31.5]} 6... Be6 {[%clk
0:02:20.9]} 7. c3 {[%clk 0:02:25.7]} 7... O-O-O {[%clk 0:02:13.8]} 8. d4 {[%clk
0:02:26]} 8... Nf6 {[%clk 0:02:10.6]} 9. Be2 {[%clk 0:02:24.1]} 9... g5 {[%clk
0:01:56.5]} 10. h3 {[%clk 0:02:07]} 10... h5 {[%clk 0:01:51.4]} 11. Qxd5 {[%clk
0:02:05]} 11... Bxd5 {[%clk 0:01:51.1]} 12. Nf3 {[%clk 0:02:05.9]} 12... Bh6
{[%clk 0:01:26.3]} 13. Nf5 {[%clk 0:02:01.6]} 13... g4 {[%clk 0:01:07.8]} 14.
Nxh6 {[%clk 0:01:43.6]} 14... gxf3 {[%clk 0:01:07.7]} 15. Bxf3 {[%clk
0:01:44.5]} 15... Bxf3 {[%clk 0:01:02.7]} 16. gxf3 {[%clk 0:01:45.4]} 16... Rh7
{[%clk 0:00:55.5]} 17. Nf5 {[%clk 0:01:45.2]} 17... Rg8 {[%clk 0:00:49.7]} 18.
Bd2 {[%clk 0:01:34.5]} 18... h4 {[%clk 0:00:41.8]} 19. Ne3 {[%clk 0:01:31.4]}
19... e6 {[%clk 0:00:34.2]} 20. Ke2 {[%clk 0:01:30]} 20... Rhg7 {[%clk
0:00:27.2]} 21. Ng4 {[%clk 0:01:25.6]} 21... Nd5 {[%clk 0:00:26.7]} 22. f4
{[%clk 0:00:57.4]} 22... f5 {[%clk 0:00:15.3]} 23. Ne5 {[%clk 0:00:57.6]} 23...
Nxe5 {[%clk 0:00:13.1]} 24. fxe5 {[%clk 0:00:58.5]} 24... Rg2 {[%clk 0:00:13.3]}
25. Kf3 {[%clk 0:00:57]} 25... b5 {[%clk 0:00:10.9]} 26. b3 {[%clk 0:00:56.1]}
26... c6 {[%clk 0:00:10.5]} 27. Rac1 {[%clk 0:00:55.5]} 27... Nb6 {[%clk
0:00:07.8]} 28. Bf4 {[%clk 0:00:55.1]} 28... Kd7 {[%clk 0:00:07.5]} 29. c4
{[%clk 0:00:54.7]} 29... a6 {[%clk 0:00:06.3]} 30. Rhd1 {[%clk 0:00:50.9]} 30...
R2g7 {[%clk 0:00:04.4]} 31. Be3 {[%clk 0:00:44.3]} 31... Nc8 {[%clk 0:00:02.9]}
32. d5 {[%clk 0:00:42.8]} 32... cxd5 {[%clk 0:00:03.3]} 33. cxd5 {[%clk
0:00:43.7]} 33... exd5 {[%clk 0:00:03.7]} 34. Rxd5+ {[%clk 0:00:44]} 34... Ke6
{[%clk 0:00:04.2]} 35. Rcd1 {[%clk 0:00:41.4]} 35... Ne7 {[%clk 0:00:03.9]} 36.
Rd6+ {[%clk 0:00:41.7]} 36... Kf7 {[%clk 0:00:03.3]} 37. Rf6+ {[%clk 0:00:36.2]}
37... Ke8 {[%clk 0:00:03.6]} 38. Rdd6 {[%clk 0:00:35.2]} 38... Nc8 {[%clk
0:00:03.2]} 39. Rc6 {[%clk 0:00:33.9]} 39... Ne7 {[%clk 0:00:02.6]} 40. Rxa6
{[%clk 0:00:33.8]} 40... Nd5 {[%clk 0:00:02.9]} 41. Ra8+ {[%clk 0:00:33.9]}
41... Ke7 {[%clk 0:00:02.7]} 42. Ra7+ {[%clk 0:00:33.3]} 42... Ke8 {[%clk
0:00:02.6]} 43. Re6+ {[%clk 0:00:33.6]} 43... Kd8 {[%clk 0:00:03.1]} 44. Rd6+
{[%clk 0:00:33.6]} 1-0

[Event "*** Titled Tuesday Blitz"]
[Site "Chess.com"]
[Date "2020.04.28"]
[Round "7"]
[White "fabianvivasz"]
[Black "djogrodek1"]
[Result "0-1"]
[WhiteElo "2398"]
[BlackElo "2556"]
[TimeControl "180+1"]
[EndTime "11:18:26 PDT"]
[Termination "djogrodek1 won on time"]

1. e4 {[%clk 0:03:00.4]} 1... c5 {[%clk 0:02:59.1]} 2. Nf3 {[%clk 0:03:00.3]}
2... Nc6 {[%clk 0:02:59.5]} 3. d4 {[%clk 0:03:00]} 3... cxd4 {[%clk 0:03:00.4]}
4. Nxd4 {[%clk 0:03:00.8]} 4... Nf6 {[%clk 0:03:00.9]} 5. Nc3 {[%clk 0:03:01.2]}
5... e6 {[%clk 0:03:01.3]} 6. Ndb5 {[%clk 0:02:51]} 6... Bb4 {[%clk 0:02:55.7]}
7. a3 {[%clk 0:02:46.4]} 7... Bxc3+ {[%clk 0:02:53.9]} 8. Nxc3 {[%clk
0:02:47.3]} 8... d5 {[%clk 0:02:54.5]} 9. exd5 {[%clk 0:02:48.2]} 9... exd5
{[%clk 0:02:55.4]} 10. Bg5 {[%clk 0:02:40]} 10... O-O {[%clk 0:02:52.3]} 11. Be2
{[%clk 0:02:35.1]} 11... h6 {[%clk 0:02:44.7]} 12. Bxf6 {[%clk 0:02:23.9]} 12...
Qxf6 {[%clk 0:02:45.6]} 13. Qxd5 {[%clk 0:02:22.6]} 13... Rd8 {[%clk 0:02:32]}
14. Qf3 {[%clk 0:02:18.7]} 14... Nd4 {[%clk 0:02:31.2]} 15. Qxf6 {[%clk
0:02:04]} 15... Nxc2+ {[%clk 0:02:30.8]} 16. Kf1 {[%clk 0:02:02.9]} 16... gxf6
{[%clk 0:02:31.7]} 17. Rd1 {[%clk 0:01:53.9]} 17... Be6 {[%clk 0:02:22.6]} 18.
g4 {[%clk 0:01:29.5]} 18... Nd4 {[%clk 0:02:18.6]} 19. f3 {[%clk 0:01:21.7]}
19... Bb3 {[%clk 0:01:50.1]} 20. Rd2 {[%clk 0:01:18.9]} 20... Ne6 {[%clk
0:01:49.9]} 21. Rxd8+ {[%clk 0:01:15.2]} 21... Rxd8 {[%clk 0:01:50.8]} 22. Ne4
{[%clk 0:01:10.9]} 22... Kg7 {[%clk 0:01:48.1]} 23. Kf2 {[%clk 0:01:09.8]} 23...
Rc8 {[%clk 0:01:29.8]} 24. Bd1 {[%clk 0:00:46.8]} 24... Rc1 {[%clk 0:01:20.6]}
25. Nc3 {[%clk 0:00:05.9]} 25... Bxd1 {[%clk 0:01:05]} 26. Nxd1 {[%clk
0:00:06.8]} 26... Nc5 {[%clk 0:00:56.7]} 27. Rf1 {[%clk 0:00:04.5]} 27... Na4
{[%clk 0:00:53.9]} 28. b3 {[%clk 0:00:03.6]} 28... Nc5 {[%clk 0:00:53.4]} 29. b4
{[%clk 0:00:02.9]} 29... Rc2+ {[%clk 0:00:44.8]} 30. Kg3 {[%clk 0:00:02.8]}
30... Ne6 {[%clk 0:00:39.3]} 31. Ne3 {[%clk 0:00:03]} 31... Rc3 {[%clk
0:00:34.8]} 32. Nf5+ {[%clk 0:00:02.7]} 32... Kg6 {[%clk 0:00:33.8]} 33. h4
{[%clk 0:00:02.5]} 33... Rxa3 {[%clk 0:00:27.4]} 34. Rd1 {[%clk 0:00:02.8]}
34... Rb3 {[%clk 0:00:12.6]} 35. Rd7 {[%clk 0:00:01.4]} 35... h5 {[%clk
0:00:08.7]} 0-1

[Event "*** Titled Tuesday Blitz"]
[Site "Chess.com"]
[Date "2020.04.28"]
[Round "7"]
[White "indfraeng"]
[Black "Juanovic"]
[Result "0-1"]
[WhiteElo "2258"]
[BlackElo "2165"]
[TimeControl "180+1"]
[EndTime "11:18:27 PDT"]
[Termination "Juanovic won by checkmate"]

1. d4 {[%clk 0:03:00.9]} 1... d5 {[%clk 0:02:59.8]} 2. c4 {[%clk 0:02:59.7]}
2... c6 {[%clk 0:03:00]} 3. cxd5 {[%clk 0:02:59.8]} 3... cxd5 {[%clk 0:02:59.9]}
4. Bf4 {[%clk 0:03:00.7]} 4... Nc6 {[%clk 0:03:00.4]} 5. e3 {[%clk 0:03:00.7]}
5... g6 {[%clk 0:02:59.8]} 6. Nc3 {[%clk 0:03:00.5]} 6... a6 {[%clk 0:02:59.8]}
7. Qb3 {[%clk 0:02:55.8]} 7... e6 {[%clk 0:02:57.3]} 8. Nf3 {[%clk 0:02:53.2]}
8... Bg7 {[%clk 0:02:57.5]} 9. Na4 {[%clk 0:02:51.5]} 9... b5 {[%clk 0:02:48.1]}
10. Nc5 {[%clk 0:02:36.7]} 10... Qa5+ {[%clk 0:02:47.2]} 11. Nd2 {[%clk
0:02:33.1]} 11... Nge7 {[%clk 0:02:40.1]} 12. Be2 {[%clk 0:02:31.3]} 12... Qb4
{[%clk 0:02:39.6]} 13. a3 {[%clk 0:02:29.2]} 13... Qxb3 {[%clk 0:02:39.6]} 14.
Ndxb3 {[%clk 0:02:30.1]} 14... O-O {[%clk 0:02:38.7]} 15. O-O {[%clk 0:02:30.4]}
15... e5 {[%clk 0:02:38.4]} 16. dxe5 {[%clk 0:02:28.4]} 16... Nxe5 {[%clk
0:02:37.8]} 17. Rfd1 {[%clk 0:02:15.6]} 17... Nc4 {[%clk 0:02:37.5]} 18. Bf3
{[%clk 0:02:07.8]} 18... Bxb2 {[%clk 0:02:32.6]} 19. Ra2 {[%clk 0:02:04.9]}
19... Be6 {[%clk 0:02:28.2]} 20. Nd4 {[%clk 0:01:47.9]} 20... Bxd4 {[%clk
0:02:25.2]} 21. Rxd4 {[%clk 0:01:48.8]} 21... Rac8 {[%clk 0:02:15.5]} 22. Nxa6
{[%clk 0:01:47.6]} 22... Nc6 {[%clk 0:02:04.4]} 23. Rd1 {[%clk 0:01:44.1]} 23...
Ra8 {[%clk 0:02:02.8]} 24. Nc7 {[%clk 0:01:40.8]} 24... Rxa3 {[%clk 0:02:01.2]}
25. Rxa3 {[%clk 0:01:41.7]} 25... Nxa3 {[%clk 0:02:01.7]} 26. Nxd5 {[%clk
0:01:40.9]} 26... Bxd5 {[%clk 0:01:55.7]} 27. Rxd5 {[%clk 0:01:39.2]} 27... Nb4
{[%clk 0:01:51.8]} 28. Rd1 {[%clk 0:01:31.7]} 28... Nbc2 {[%clk 0:01:50.2]} 29.
h4 {[%clk 0:01:30.3]} 29... h5 {[%clk 0:01:48.8]} 30. Rd5 {[%clk 0:01:20.9]}
30... b4 {[%clk 0:01:47.3]} 31. Bd6 {[%clk 0:01:15.8]} 31... Rc8 {[%clk
0:01:44.1]} 32. Rd3 {[%clk 0:01:11.1]} 32... Rc3 {[%clk 0:01:39.5]} 33. Rxc3
{[%clk 0:01:07.8]} 33... bxc3 {[%clk 0:01:39.3]} 34. Be5 {[%clk 0:01:08.3]}
34... Nb5 {[%clk 0:01:30.2]} 35. Be2 {[%clk 0:01:04.1]} 35... Nca3 {[%clk
0:01:27.1]} 36. Kf1 {[%clk 0:01:00.8]} 36... Kf8 {[%clk 0:01:21.7]} 37. Ke1
{[%clk 0:00:58.9]} 37... Ke7 {[%clk 0:01:22.1]} 38. Kd1 {[%clk 0:00:58.4]} 38...
Ke6 {[%clk 0:01:22.4]} 39. Bh8 {[%clk 0:00:52]} 39... f6 {[%clk 0:01:22]} 40.
Kc1 {[%clk 0:00:50.5]} 40... Kf7 {[%clk 0:01:13.4]} 41. g4 {[%clk 0:00:44.7]}
41... hxg4 {[%clk 0:01:10.3]} 42. Bxg4 {[%clk 0:00:45.6]} 42... Nd6 {[%clk
0:01:02.4]} 43. h5 {[%clk 0:00:44.4]} 43... Ne4 {[%clk 0:00:53]} 44. f3 {[%clk
0:00:36.7]} 44... Nf2 {[%clk 0:00:47.8]} 45. hxg6+ {[%clk 0:00:19.1]} 45... Kxg6
{[%clk 0:00:47.7]} 46. Bxf6 {[%clk 0:00:06.7]} 46... Kxf6 {[%clk 0:00:47.6]} 47.
Bf5 {[%clk 0:00:03.2]} 47... Kxf5 {[%clk 0:00:47]} 48. e4+ {[%clk 0:00:04.1]}
48... Kf4 {[%clk 0:00:46.9]} 49. e5 {[%clk 0:00:03.5]} 49... Nd3+ {[%clk
0:00:47.1]} 50. Kd1 {[%clk 0:00:03.9]} 50... c2+ {[%clk 0:00:46.6]} 51. Ke2
{[%clk 0:00:04.8]} 51... c1=Q {[%clk 0:00:46.8]} 52. Kxd3 {[%clk 0:00:05.7]}
52... Qc4+ {[%clk 0:00:45.8]} 53. Kd2 {[%clk 0:00:05.8]} 53... Qc2+ {[%clk
0:00:45.6]} 54. Ke1 {[%clk 0:00:05.8]} 54... Ke3 {[%clk 0:00:45.4]} 55. e6
{[%clk 0:00:06]} 55... Qc1# {[%clk 0:00:45.6]} 0-1

[Event "*** Titled Tuesday Blitz"]
[Site "Chess.com"]
[Date "2020.04.28"]
[Round "7"]
[White "canary2016"]
[Black "Dr_Thomas_Quilter"]
[Result "0-1"]
[WhiteElo "1879"]
[BlackElo "2221"]
[TimeControl "180+1"]
[EndTime "11:18:27 PDT"]
[Termination "Dr_Thomas_Quilter won by resignation"]

1. Nf3 {[%clk 0:03:00.9]} 1... g5 {[%clk 0:02:58.1]} 2. Nxg5 {[%clk 0:02:59.1]}
2... e5 {[%clk 0:02:58.3]} 3. Nf3 {[%clk 0:02:56.1]} 3... e4 {[%clk 0:02:57.7]}
4. Nd4 {[%clk 0:02:55.4]} 4... Bg7 {[%clk 0:02:58.3]} 5. Nb3 {[%clk 0:02:52.9]}
5... d5 {[%clk 0:02:53.3]} 6. d4 {[%clk 0:02:50.9]} 6... exd3 {[%clk 0:02:49.8]}
7. Qxd3 {[%clk 0:02:39.9]} 7... Ne7 {[%clk 0:02:46.9]} 8. g3 {[%clk 0:02:37]}
8... Nbc6 {[%clk 0:02:39]} 9. Bg2 {[%clk 0:02:36.1]} 9... Bf5 {[%clk 0:02:38.4]}
10. Qd1 {[%clk 0:02:30.7]} 10... O-O {[%clk 0:02:26.8]} 11. O-O {[%clk
0:02:29.9]} 11... a5 {[%clk 0:02:24.6]} 12. a4 {[%clk 0:02:28.9]} 12... Nb4
{[%clk 0:02:19.1]} 13. Na3 {[%clk 0:02:28.2]} 13... c6 {[%clk 0:02:16.6]} 14. c3
{[%clk 0:02:23.7]} 14... Na6 {[%clk 0:02:16.1]} 15. Nd4 {[%clk 0:02:21.5]} 15...
Bg6 {[%clk 0:02:15.1]} 16. Bf4 {[%clk 0:02:17.5]} 16... Nc5 {[%clk 0:02:10.7]}
17. Nac2 {[%clk 0:02:04]} 17... Ne6 {[%clk 0:02:09.5]} 18. Bd2 {[%clk
0:01:53.9]} 18... c5 {[%clk 0:02:06]} 19. Nxe6 {[%clk 0:01:49.2]} 19... fxe6
{[%clk 0:02:06.9]} 20. Bf4 {[%clk 0:01:45.9]} 20... e5 {[%clk 0:01:55.8]} 21.
Bg5 {[%clk 0:01:45]} 21... d4 {[%clk 0:01:50.4]} 22. cxd4 {[%clk 0:01:39.2]}
22... exd4 {[%clk 0:01:44.9]} 23. Bxb7 {[%clk 0:01:27.9]} 23... Rb8 {[%clk
0:01:43.4]} 24. Bxe7 {[%clk 0:01:26.3]} 24... Qxe7 {[%clk 0:01:37.1]} 25. Bd5+
{[%clk 0:01:25.3]} 25... Kh8 {[%clk 0:01:37.8]} 26. Rb1 {[%clk 0:01:19.5]} 26...
Rfe8 {[%clk 0:01:30.1]} 27. e3 {[%clk 0:01:17.4]} 27... Qd6 {[%clk 0:01:12.9]}
28. e4 {[%clk 0:01:01.4]} 28... Bxe4 {[%clk 0:00:59.6]} 29. Bxe4 {[%clk
0:01:01]} 29... Rxe4 {[%clk 0:01:00.3]} 30. Ne3 {[%clk 0:01:00]} 30... d3 {[%clk
0:00:51]} 31. Nf5 {[%clk 0:00:58.9]} 31... Qd5 {[%clk 0:00:42.2]} 32. Nxg7
{[%clk 0:00:57.5]} 32... Kxg7 {[%clk 0:00:42.3]} 33. Qd2 {[%clk 0:00:53.5]}
33... c4 {[%clk 0:00:35.3]} 34. Qc3+ {[%clk 0:00:53.1]} 34... Qe5 {[%clk
0:00:27.9]} 35. Qa3 {[%clk 0:00:33.7]} 35... Qe7 {[%clk 0:00:25]} 36. Qc3+
{[%clk 0:00:32.4]} 36... Qe5 {[%clk 0:00:25.5]} 37. Qa3 {[%clk 0:00:32]} 37...
Rb3 {[%clk 0:00:23.2]} 38. Qa2 {[%clk 0:00:29.4]} 38... Re2 {[%clk 0:00:22.4]}
39. Rbc1 {[%clk 0:00:20.1]} 39... Qd4 {[%clk 0:00:16.3]} 40. Qb1 {[%clk
0:00:18.4]} 40... Rexb2 {[%clk 0:00:13.3]} 41. Qa1 {[%clk 0:00:17.2]} 41... c3
{[%clk 0:00:13.4]} 42. Rfe1 {[%clk 0:00:13.4]} 42... Qxf2+ {[%clk 0:00:13]} 0-1